Cogmind - Beta 14 @@@ ROGUE MODE // 2024.08.15 @ 09:44:38 Player: Zaros426 Result: Destroyed by P4-T2A(x) via exploding Power Conduit Performance ------------- Evolutions (3) 1500 Regions Visited (6) 1200 Robots Destroyed (119) 595 Value Destroyed (4487) 4487 Prototype IDs (2) 40 Alien Tech Used (0) 0 Bonus (1601) 1601 TOTAL SCORE: 9423 Bonus ------- High Alert Combat Kills 624 Follower Combat Kills 277 Entered Garrisons 200 Used RIF Installer 500 Cogmind --------- Core Integrity 0/700 Matter 272/300 Energy 20/290 System Corruption 20% Temperature Cool (24) Movement Treading (167) Location -7/Factory Parts ------- > --- POWER (1) -------- Improved Deuterium Engine > --- PROPULSION (4) --- Armored Treads Armored Treads Armored Treads Medium Treads > --- UTILITY (5) ------ Large Storage Unit Remote Shield Remote Shield Remote Shield Remote Shield > --- WEAPON (3) ------- Great Axe Great Axe Great Axe > --- INVENTORY (15) --- Particle Reactor Medium Treads Armored Huge Wheel High-capacity Storage Unit Relay Coupler [Grunt] (31) Relay Coupler [Grunt] (25) Relay Coupler [Grunt] (26) Relay Coupler [Sentry] (21) Relay Coupler [Sentry] (23) Relay Coupler [Sentry] (23) Relay Coupler [Behemoth] (12) Flak Gun Flak Cannon Grenade Launcher Peak State ------------ > --- POWER ------------ Reinforced Deuterium Engine > --- PROPULSION ------- Armored Treads Armored Treads Armored Treads Medium Treads > --- UTILITY ---------- Large Storage Unit Remote Shield Remote Shield Remote Shield Remote Shield > --- WEAPON ----------- Great Axe Great Axe Great Axe > --- INVENTORY -------- Improved Deuterium Engine Particle Reactor Medium Treads Armored Wheel Armored Huge Wheel High-capacity Storage Unit Relay Coupler [Grunt] Relay Coupler [Grunt] Relay Coupler [Sentry] Relay Coupler [Sentry] Relay Coupler [Sentry] Relay Coupler [Behemoth] Flak Cannon Grenade Launcher [Rating: 55] Favorites ----------- Power Heavy Ion Engine Engine Heavy Ion Engine Propulsion Light Treads Treads Light Treads Leg Improved Carbon-fiber Leg Wheel Armored Huge Wheel Utility Large Storage Unit Device Remote Shield Storage Large Storage Unit Processor Melee Analysis Suite Hackware Hacking Suite Protection Improved Light Armor Plating Weapon Great Axe Energy Gun Medium Laser Energy Cannon Light EM Pulse Cannon Ballistic Gun Shotgun Ballistic Cannon Flak Cannon Launcher Grenade Launcher Slashing Weapon Great Axe Build | -11 -10 -9 -8 -7 -7 -7 ------- Run | Yrd Mat Mat Mat Fac Gar Fac Slots Evolved 6 | . . 2 2 2 . . Power . | . . . . . . . Propulsion 2 | . . . 1 1 . . Utility 3 | . . 1 1 1 . . Weapon 1 | . . 1 . . . . Parts Attached 104 | 7 8 22 20 26 21 . Power 10 | 1 1 4 . 3 1 . Engine 10 | 1 1 4 . 3 1 . Core . | . . . . . . . Reactor . | . . . . . . . Propulsion 23 | 2 4 2 7 4 4 . Treads 15 | 2 4 2 3 . 4 . Leg 5 | . . . 3 2 . . Wheel 3 | . . . 1 2 . . Hover . | . . . . . . . Flight . | . . . . . . . Utility 40 | 2 2 7 6 12 11 . Device 11 | 1 . 2 . 2 6 . Storage 4 | 1 1 . 1 1 . . Processor 6 | . 1 1 2 2 . . Hackware 5 | . . 2 1 2 . . Protection 14 | . . 2 2 5 5 . Artifact . | . . . . . . . Weapon 31 | 2 1 9 7 7 5 . Energy Gun 4 | 2 . 2 . . . . Energy Cannon 1 | . . . 1 . . . Ballistic Gun 1 | . . . 1 . . . Ballistic Cannon 1 | . . . . 1 . . Launcher 7 | . 1 2 2 1 1 . Special Weapon . | . . . . . . . Impact Weapon . | . . . . . . . Slashing Weapon 17 | . . 5 3 5 4 . Piercing Weapon . | . . . . . . . Special Melee Weapon . | . . . . . . . Unidentified Prototypes . | . . . . . . . Parts Lost 26 | . 1 8 2 4 11 . Power 3 | . . 2 . . 1 . Propulsion 4 | . 1 1 . . 2 . Utility 15 | . . 3 1 4 7 . Weapon 4 | . . 2 1 . 1 . Highest Loss Streak 5 | . 1 4 1 1 5 . To Critical Strikes 1 | . 1 . . . . . Average Slot Usage (%) 92 | . 99 89 98 89 88 100 Engine 8 | . 13 8 9 7 6 7 Treads 17 | . 27 21 18 . 19 30 Leg 3 | . . . 5 14 . . Wheel 3 | . . . 3 7 5 . Device 10 | . 14 2 . 7 16 30 Storage 9 | . 14 11 9 7 7 7 Processor 2 | . . . 9 4 . . Hackware 4 | . . 7 11 8 . . Protection 4 | . . 5 6 5 7 . Energy Gun 4 | . 21 3 . . . . Launcher 3 | . 6 5 3 1 . . Slashing Weapon 17 | . . 23 21 19 22 23 Peak Build Rating 55 | 7 8 23 35 51 55 55 Average Rating 31 | 5 7 16 27 46 49 55 On Entrance 25 | . 7 7 23 35 51 55 Naked Turns . | . . . . . . . Heaviest Build 67 | 15 31 40 41 55 67 62 Greatest Support 88 | 40 40 40 60 72 88 88 Greatest Overweight (x) 2 | 2 . 1 2 1 1 . Average Overweight (x) . | . . . . . . . Largest Inventory Capacity 15 | 8 15 15 15 15 15 15 Average Capacity 14 | 7 14 15 15 15 15 15 Most Carried 15 | . 15 15 15 15 15 15 Average Carried 12 | . 8 13 14 14 14 14 Final Capacity 15 | 8 15 15 15 15 15 15 Final Carried 15 | . 15 15 15 15 15 15 Class Distribution -------------------- 47% | Mutant 34% | Gladiator 8% | Hacker-Gladiator 4% | Hacker-Mutant Dominant Class ---------------- Mutant | -10/Materials Mutant | -9/Materials Gladiator | -8/Materials Gladiator | -7/Factory Mutant | -7/Garrison Mutant | -7/Factory Resources | -11 -10 -9 -8 -7 -7 -7 ----------- Run | Yrd Mat Mat Mat Fac Gar Fac Matter Collected 1628 | 263 119 317 234 358 337 . Remotely 13 | . . . . . 13 . Salvage Created 4543 | 43 474 825 608 1169 1424 . Parts 253 | 7 33 52 32 77 52 . Haulers Intercepted 4 | . 1 1 1 1 . . Recyclers Shooed 3 | . 1 2 . . . . Parts Field Recycled . | . . . . . . . Retrieved Matter . | . . . . . . . Parts Self-Destructed . | . . . . . . . Prevented . | . . . . . . . Kills | -11 -10 -9 -8 -7 -7 -7 ------- Run | Yrd Mat Mat Mat Fac Gar Fac Combat Hostiles Destroyed 87 | . 9 21 10 21 26 . Melee 66 | . . 18 10 16 22 . Guns 6 | . 5 1 . . . . Cannons 2 | . . . . 2 . . AOE 13 | . 4 2 . 3 4 . Classes Destroyed 15 | 1 7 1 1 3 2 . Worker 2 | . . . 1 1 . . Builder 9 | . 1 . . 8 . . Tunneler 2 | 2 . . . . . . Hauler 4 | . 1 1 1 1 . . Recycler 6 | . 1 2 2 1 . . Operator 2 | . 1 . 1 . . . Watcher 7 | . 3 3 1 . . . Swarmer 27 | . 6 11 3 . 7 . Cutter 1 | . . . . . 1 . Grunt 33 | . 3 5 5 10 10 . Brawler 4 | . . . . 3 1 . Duelist 1 | . . . . . 1 . Sentry 9 | . . 5 2 2 . . Hunter 5 | . . . . 3 2 . Programmer 7 | . . . . 3 4 . Best Kill Streak 11 | 2 3 10 3 11 5 . Combat Bots Only 10 | . 3 10 3 4 5 . Max Kills in Single Turn 5 | 1 2 1 1 5 2 . Gunslinging . | . . . . . . . Exploded 3 | . 2 1 . 3 2 . Melee 1 | . . 1 1 1 1 . Uniques/NPCs Destroyed . | . . . . . . . Combat | -11 -10 -9 -8 -7 -7 -7 -------- Run | Yrd Mat Mat Mat Fac Gar Fac Hostile Shots Fired 574 | . 49 104 38 173 210 . Missed 169 | . 13 25 13 64 54 . Damage Taken 5939 | . 382 862 372 1424 2708 191 Core 970 | . 69 148 20 264 370 99 Absorbed by Shields 91 | . . 4 . . 87 . Core Remaining (%) 82 | 100 72 63 96 . . . Volleys Fired 85 | 4 45 15 4 12 5 . Largest 3 | 2 2 3 3 1 1 . Hottest 110 | 90 90 110 109 44 30 . Shots Fired 136 | 8 78 27 6 11 6 . Gun 101 | 8 76 16 1 . . . Cannon 10 | . . . 1 9 . . Launcher 25 | . 2 11 4 2 6 . Special . | . . . . . . . Kinetic 10 | . . . 1 9 . . Thermal 57 | 4 43 10 . . . . Explosive 25 | . 2 11 4 2 6 . Electromagnetic 44 | 4 33 6 1 . . . Robot Hit Streak 11 | 1 8 8 1 5 11 . Robot Miss Streak 5 | 2 5 2 2 4 . . Penetration Max . | . . . . . . . Secondary Targets 1 | . 1 . . . . . Max Gunslinging Chain 1 | . 1 . . . . . Shots Hit Robots 273 | 4 41 49 34 71 74 . Core Hits 159 | 2 21 33 18 43 42 . Critical Kills . | . . . . . . . Critical Parts Destroyed . | . . . . . . . Critical Strikes 16 | . . 2 . 7 7 . Corrupt 1 | . . 1 . . . . Sever 15 | . . 1 . 7 7 . Melee Attacks 324 | . . 49 44 87 144 . Impact . | . . . . . . . Slashing 324 | . . 49 44 87 144 . Piercing . | . . . . . . . Sneak Attacks 18 | . . 6 8 4 . . Combat Hostiles 1 | . . . . 1 . . Follow-up Attacks 56 | . . 9 11 13 23 . Damage Inflicted 11262 | 64 803 1874 1565 3459 3497 . Guns 788 | 64 557 158 9 . . . Cannons 222 | . . . 30 192 . . Explosions 1984 | . 246 395 141 800 402 . Melee 8268 | . . 1321 1385 2467 3095 . Ramming . | . . . . . . . Kinetic 201 | . . . 9 192 . . Thermal 501 | 25 329 147 . . . . Explosive 1849 | . 170 336 141 800 402 . Electromagnetic 443 | 39 304 70 30 . . . Impact . | . . . . . . . Slashing 8268 | . . 1321 1385 2467 3095 . Piercing . | . . . . . . . Highest Corruption 20 | . . . . 11 20 20 Average Corruption 14 | . . . . 7 18 20 Corruption Purged . | . . . . . . . Corruption Blocked . | . . . . . . . Effects 118 | . . . . 36 71 11 Message Errors 28 | . . . . 9 15 4 Matter Fused 24 | . . . . 8 14 2 Heat Flow Errors 14 | . . . . 4 9 1 Energy Discharges 19 | . . . . 5 10 4 Parts Rejected 1 | . . . . . 1 . Parts Fused 1 | . . . . 1 . . Data Loss (minor) 14 | . . . . 3 11 . Data Loss (major) 9 | . . . . 4 5 . Misfires 1 | . . . . . 1 . Alerts 2 | . . . . 1 1 . Misdirections 4 | . . . . . 4 . Weapon Failures 1 | . . . . 1 . . Overload Shots . | . . . . . . . Overflow Damage 632 | . 19 171 118 192 132 . Projectiles . | . . . . . . . Explosions 148 | . 19 38 2 89 . . Melee 484 | . . 133 116 103 132 . Knockbacks 3 | . . . . 3 . . Impact . | . . . . . . . Kinetic 3 | . . . . 3 . . Secondary . | . . . . . . . Self-Inflicted Damage 181 | . 28 44 24 . 85 . Shots 10 | . 1 2 2 . 5 . Rammed . | . . . . . . . Targets Rammed . | . . . . . . . Kicked . | . . . . . . . Crushed . | . . . . . . . Highest Temperature 332 | 60 332 179 42 255 266 154 Average Temperature 98 | 30 120 96 22 75 89 80 Received Heat Transfer 1318 | . 132 198 180 225 559 24 Effects 4 | . 4 . . . . . Interference 3 | . 3 . . . . . Matter Decay 1 | . 1 . . . . . Siege Activations . | . . . . . . . Robots Corrupted . | . . . . . . . Combat Hostiles . | . . . . . . . Parts Fried 1 | . . . 1 . . . Impact Corruptions . | . . . . . . . Robots Melted . | . . . . . . . Combat Hostiles . | . . . . . . . Parts Melted 3 | . 1 1 . . 1 . Heat Transferred 1223 | 74 840 309 . . . . Parts Sabotaged . | . . . . . . . Parts Stolen . | . . . . . . . Parts Stripped . | . . . . . . . Power Chain Reactions 3 | . 2 1 . . . . Alert | -11 -10 -9 -8 -7 -7 -7 ------- Run | Yrd Mat Mat Mat Fac Gar Fac Peak Influence 1663 | 10 193 541 275 601 1663 887 Initial 872 | . 6 . 174 12 399 872 Average 428 | 4 51 289 163 242 1063 872 Maximum Alert Level 5 | . . 2 1 2 5 3 Low Security (%) 49 | 100 100 31 68 64 . . Level 1 11 | . . 39 31 1 3 . Level 2 15 | . . 29 . 33 16 . Level 3 10 | . . . . . 28 100 Level 4 9 | . . . . . 35 . Level 5 4 | . . . . . 15 . High Security . | . . . . . . . Max Security . | . . . . . . . Squads Dispatched 13 | . . 1 2 10 . . Investigation 8 | . . 1 1 6 . . Extermination 4 | . . . . 4 . . Reinforcement 1 | . . . 1 . . . Assault . | . . . . . . . Garrison . | . . . . . . . Intercept . | . . . . . . . Searches Triggered . | . . . . . . . Construction Impeded . | . . . . . . . Haulers Reinforced . | . . . . . . . Active Scanning Responses . | . . . . . . . Cargo Convoy Interrupts . | . . . . . . . Stealth | -11 -10 -9 -8 -7 -7 -7 --------- Run | Yrd Mat Mat Mat Fac Gar Fac Distress Signals 5 | . 1 3 1 . . . Communications Jammed . | . . . . . . . Distress Signals . | . . . . . . . Times Spotted 131 | . 15 35 13 27 39 2 Peak Tracking Total 9 | . 3 9 3 5 6 2 Tactical Retreats 10 | . 1 3 1 5 . . Traps | -11 -10 -9 -8 -7 -7 -7 ------- Run | Yrd Mat Mat Mat Fac Gar Fac Traps Triggered 10 | . 2 . . 4 4 . Indirectly . | . . . . . . . Trap Hack Attempts . | . . . . . . . Triggered . | . . . . . . . Disarmed . | . . . . . . . Reprogrammed . | . . . . . . . Reused . | . . . . . . . Traps Extracted . | . . . . . . . Installed . | . . . . . . . Triggered . | . . . . . . . Objects Rigged 1 | . 1 . . . . . Machines | -11 -10 -9 -8 -7 -7 -7 ---------- Run | Yrd Mat Mat Mat Fac Gar Fac Machines Disabled 24 | . 1 . . 16 5 2 Max in Single Turn 6 | . 1 . . 6 1 . Garrison Access 1 | . . . . . . 1 Garrison Relay 4 | . . . . . 4 . Machines Repaired . | . . . . . . . Machines Dismantled . | . . . . . . . Machines Sabotaged . | . . . . . . . Overloaded Fab Kills . | . . . . . . . Hacking | -11 -10 -9 -8 -7 -7 -7 --------- Run | Yrd Mat Mat Mat Fac Gar Fac Machines Accessed 31 | . 6 5 5 10 4 1 Terminals 23 | . 6 4 4 5 4 . Fabricators 2 | . . . . 2 . . Repair Stations . | . . . . . . . Recycling Units . | . . . . . . . Scanalyzers 4 | . . 1 1 2 . . Garrison Access 2 | . . . . 1 . 1 Total Hacks 97 | . 17 26 15 28 10 1 Successful 63 | . 9 22 12 16 3 1 Failed 32 | . 7 4 2 12 7 . Catastrophic 7 | . 1 1 . 4 1 . Database Lockouts 2 | . 1 . 1 . . . Manual 36 | . 14 4 12 6 . . Terminals 63 | . 17 12 12 12 10 . Fabricators 7 | . . . . 7 . . Repair Stations . | . . . . . . . Recycling Units . | . . . . . . . Scanalyzers 24 | . . 14 3 7 . . Garrison Access 3 | . . . . 2 . 1 Terminal Hacks 21 | . 6 6 4 2 3 . Record 1 | . . . 1 . . . Robot Schematic 1 | . 1 . . . . . Robot Analysis 3 | . 1 . 1 1 . . Prototype ID Bank 1 | . 1 . . . . . Open Door 1 | . . . . . 1 . Emergency Access Points 1 | . . . . . 1 . Alert Level 1 | . . . 1 . . . Unreport Threat 1 | . . . 1 . . . Locate Traps 3 | . 1 1 . 1 . . Dispatch Records 1 | . 1 . . . . . Security Status 1 | . . 1 . . . . Investigation Status 1 | . . 1 . . . . Registered Components 1 | . . 1 . . . . Registered Prototypes 1 | . . 1 . . . . Zone Layout 2 | . 1 1 . . . . Patrol Navigation 1 | . . . . . 1 . Fabricator Hacks 5 | . . . . 5 . . Network Status 1 | . . . . 1 . . Load Schematic 2 | . . . . 2 . . Build 2 | . . . . 2 . . Repair Station Hacks . | . . . . . . . Recycling Unit Hacks . | . . . . . . . Scanalyzer 24 | . . 14 3 7 . . Insert Component 12 | . . 7 1 4 . . Analyze 12 | . . 7 2 3 . . Garrison Access Hacks 2 | . . . . 1 . 1 Unlock Access 1 | . . . . 1 . . Seal Access 1 | . . . . . . 1 Unauthorized Hacks 11 | . 3 2 5 1 . . Terminals 11 | . 3 2 5 1 . . Track 1 | . . . 1 . . . Assimilate 2 | . . . 1 1 . . Botnet 7 | . 2 2 3 . . . Detonate 1 | . 1 . . . . . Fabricators . | . . . . . . . Repair Stations . | . . . . . . . Recycling Units . | . . . . . . . Scanalyzers . | . . . . . . . Garrison Access . | . . . . . . . Data Cores Recovered 2 | . 1 . 1 . . . Used 1 | . . . 1 . . . Hacking Detections 27 | . 6 5 4 10 2 . Full Trace Events 8 | . . 1 1 4 2 . Feedback Events . | . . . . . . . Feedback Blocked . | . . . . . . . Robot Schematics Acquired 1 | . 1 . . . . . Robots Built 6 | . . . . 6 . . Authchips . | . . . . . . . Time 162 | . . . . 162 . . Total Robot Build Rating 6 | . . . . 6 . . Part Schematics Acquired 11 | . . 7 1 3 . . Parts Built . | . . . . . . . Authchips . | . . . . . . . Time . | . . . . . . . Total Part Build Rating . | . . . . . . . Parts Repaired . | . . . . . . . Time . | . . . . . . . Parts Recycled . | . . . . . . . Recycled Matter . | . . . . . . . Retrieved Matter . | . . . . . . . Retrieved Components . | . . . . . . . Parts Scanalyzed 11 | . . 7 1 3 . . Part Schematics Acquired 11 | . . 7 1 3 . . Parts Damaged . | . . . . . . . Bothacking | -11 -10 -9 -8 -7 -7 -7 ------------ Run | Yrd Mat Mat Mat Fac Gar Fac Used RIF Installer 1 | . . . . . 1 . Robots Hacked . | . . . . . . . Non-combat . | . . . . . . . Combat . | . . . . . . . Robot Hacks Applied . | . . . . . . . Relay Couplers Released 17 | . . . . . 17 . Machine Destruction 17 | . . . . . 17 . Fabnet Peak Effective % . | . . . . . . . Robots Rewired 2 | . . . . . 2 . Allies Hacked 1 | . . . . 1 . . Hacks Repelled 1 | . . . . 1 . . Allies | -11 -10 -9 -8 -7 -7 -7 -------- Run | Yrd Mat Mat Mat Fac Gar Fac Total Allies 11 | . . . . 7 4 . Largest Group 3 | . . . . 3 3 3 Highest-Rated Group 163 | . . . . 26 163 163 Highest-Rated Ally 62 | . . . . 26 62 62 Total Orders . | . . . . . . . Ally Attacks 93 | . . . . 24 67 2 Total Damage 2017 | . . . . 211 1070 736 Kills 15 | . . . . 2 10 3 Allies Corrupted . | . . . . . . . Allies Melted . | . . . . . . . Intel | -11 -10 -9 -8 -7 -7 -7 ------- Run | Yrd Mat Mat Mat Fac Gar Fac Robot Analysis Total 3 | . 1 . 1 1 . . Derelict Logs Recovered . | . . . . . . . Drone Launches . | . . . . . . . Drone Recoveries . | . . . . . . . Exploration | -11 -10 -9 -8 -7 -7 -7 ------------- Run | Yrd Mat Mat Mat Fac Gar Fac Turns Passed 6436 | 93 1335 959 846 1336 1664 203 Spaces Moved 3463 | 46 711 462 417 830 876 121 Core 7 | 7 . . . . . . Treads 2135 | 39 711 462 285 . 517 121 Legs 496 | . . . 127 369 . . Wheels 825 | . . . 5 461 359 . Hover . | . . . . . . . Flight . | . . . . . . . Fastest Speed 50 | 50 160 160 120 100 100 167 Average Speed 143 | 153 160 160 150 108 144 167 Slowest Speed 260 | 160 160 240 260 120 167 167 Overloaded Moves . | . . . . . . . Propulsion Burnouts . | . . . . . . . Robots Hopped . | . . . . . . . Cave-ins Triggered . | . . . . . . . Exploration Rate (%) 46 | 3 96 51 39 29 99 5 Regions Visited 6 Branch Regions . Pre-discovered Areas . | . . . . . . . Known Exits Taken 4 | . 1 1 1 1 . . Unknown Exits Taken 1 | 1 . . . . . . Scrap Searched . | . . . . . . . Spaces Dug 21 | . . 11 . 5 5 . Terrain Destroyed 189 | . 19 48 26 69 27 . Melee 11 | . . 1 . 5 5 . Projectile . | . . . . . . . AOE 178 | . 19 47 26 64 22 . Terrain Rammed . | . . . . . . . Walls Destroyed . | . . . . . . . Machines Disabled . | . . . . . . . Actions | -11 -10 -9 -8 -7 -7 -7 --------- Run | Yrd Mat Mat Mat Fac Gar Fac Total 4429 | 57 829 581 574 1162 1103 123 Wait 383 | 1 45 27 89 185 36 . Move 3458 | 45 710 461 416 830 875 121 Hop . | . . . . . . . Pick Up 63 | . 17 12 7 16 10 1 Fast Attach 36 | 7 2 4 5 9 9 . Attach 24 | . 1 7 4 4 8 . Detach . | . . . . . . . Swap 44 | . 5 11 11 13 4 . Drop 50 | . 4 8 10 23 4 1 Fire 85 | 4 45 15 4 12 5 . Melee 238 | . . 36 28 70 104 . Ram . | . . . . . . . Kick . | . . . . . . . Crush . | . . . . . . . Escape Stasis 24 | . . . . . 24 . Rewire 24 | . . . . . 24 . Trap . | . . . . . . . Miscellaneous . | . . . . . . . Route ------- -11/Scrapyard -10/Materials (discovered 5 exits: *Mat x3 / [*Min x2]) -9/Materials (discovered 2 exits: *Mat x2) -8/Materials -7/Factory -7/Garrison (discovered 3 exits: *Fac x3) -7/Factory History --------- Turn | Location | Event 17 | -11/Scrapyard | Discovered new exit (range 15) 94 | -11/Scrapyard | Entered Materials 300 | -10/Materials | Build established: Mutant 410 | -10/Materials | Discovered new exit (range 4) 781 | -10/Materials | Discovered new exit (range 15) 917 | -10/Materials | Discovered new exit (range 5) 1033 | -10/Materials | Discovered new exit (range 10) 1054 | -10/Materials | Discovered new exit (range 15) 1363 | -10/Materials | Central database locked down 1426 | -10/Materials | Identified exit to Materials 1429 | -10/Materials | Entered another Materials area 1429 | -9/Materials | Evolved 2 slots: Utility x1, Weapon x1 1543 | -9/Materials | Lost 4 parts (1p1u2w) 1789 | -9/Materials | Destroyed 10 combat bots 1921 | -9/Materials | Discovered new exit (range 4) 2309 | -9/Materials | Discovered new exit (range 3) 2342 | -9/Materials | Build established: Hacker-Mutant 2380 | -9/Materials | Identified exit to Materials 2388 | -9/Materials | Entered another Materials area 2388 | -8/Materials | Evolved 2 slots: Propulsion x1, Utility x1 2505 | -8/Materials | Central database locked down 3022 | -8/Materials | Discovered new exit (range 6) 3024 | -8/Materials | Build established: Gladiator 3234 | -8/Materials | Identified exit to Factory 3234 | -8/Materials | Entered Factory 3234 | -7/Factory | Evolved 2 slots: Propulsion x1, Utility x1 3428 | -7/Factory | Fabricated G-34 Mercenary? 3646 | -7/Factory | Build established: Hacker-Gladiator 4013 | -7/Factory | Build established: Gladiator 4324 | -7/Factory | System corruption reached 10% 4487 | -7/Factory | Fabricated G-34 Mercenary (x3) 4557 | -7/Factory | Identified exit to Garrison 4570 | -7/Factory | Entered Garrison 4570 | -7/Garrison | Accompanied by 3 allies 4594 | -7/Garrison | Triggered checkpoint 4650 | -7/Garrison | Garrison Relay disabled 4880 | -7/Garrison | Core integrity fell below 50% 5005 | -7/Garrison | Discovered new exit (range 12) 5028 | -7/Garrison | Triggered checkpoint 5057 | -7/Garrison | Garrison Relay disabled 5150 | -7/Garrison | Triggered checkpoint 5224 | -7/Garrison | Lost 5 parts (2n3u) 5272 | -7/Garrison | Triggered checkpoint 5299 | -7/Garrison | Core integrity fell below 20% 5363 | -7/Garrison | Garrison Relay disabled 5392 | -7/Garrison | Triggered checkpoint 5550 | -7/Garrison | Discovered new exit (range 14) 5603 | -7/Garrison | Build established: Mutant 5696 | -7/Garrison | Triggered checkpoint 5737 | -7/Garrison | Found embedded Infiltrators 5768 | -7/Garrison | Garrison Relay disabled 5803 | -7/Garrison | Discovered new exit (range 10) 5964 | -7/Garrison | Triggered checkpoint 6058 | -7/Garrison | Installed Relay Interface Framework 6234 | -7/Garrison | Entered Factory 6234 | -7/Factory | Accompanied by 3 allies 6437 | -7/Factory | Destroyed by P4-T2A(x) via exploding Power Conduit Last Messages --------------- 06281_ System corrupted: Energy discharge (-77). 06297_ CK5NINSV2NO1|XW>TV8JIFX&NRUL0UILCPKNSIE 06346_ Dropped Arm. Wheel. 06355_ System corrupted: Energy discharge (-58). 06365_ Acquired Flak Gun. 06375_ D>8YCBSGURXCMTVO1 PAFF 06390_ System corrupted: Energy discharge (-89). 06405_ System corrupted: Matter fused (-7). 06420_ System corrupted: Heat flow error (+177). 06431_ ALERT: All DSF locations entering lockdown mode. 06434_ G-50 Soldier knocked back. 06435_ YK<>%LJIK:UF|F/E/CC 06437_ Power Conduit explodes. 06437_ Z0-XYX(h) destroyed. 06437_ Power Conduit explodes. 06437_ G-50 Soldier destroyed. 06437_ T6-P6R(x) destroyed. Map ----- +----------------------------------------------------+ | ??????????????????????????????????????############ | | ??????????????????????????????????????# | | ??????????????????????????????????????# [ | | ??????????????????????????????????????# | | ??????????????????????????????????????# | | ??????????????????????????????????????# | | ??????????????????????????????????????# | | ????????????????????????############### | | ?????????????????????????= ] ## | | ????????????????????????# """ ## | | ????????????????????????#= """"" ## | | ????????????????????????# """"" ## | | ????????????????????????# ## = | | ????????????????????????# """ ########+#+## | | ????????????????????????# """"" ] + #? | | ????????????????????????# """"" ###### #? | | ????????????????????????# #????# #? | | ????????????????????????# ! #????# #? | | ????????????????????????# #????# #? | | ????????????????????????# #????# #? | | ????????????###################+########### ## | | ??????????? | | ??????????? | | ?????????? | | ?????????? | | ??????????" %@% | | ??????????" =% x ################ | | ??????????" !!! g ##############?# | | ??????????? !!! % # ?# | | ??????????? !!! # # | | ???????????? # # | | ???????????? # + | | ???????????? ! # # | | ?????????????################ # # | | ????????????????????????????# ###########+#### | | ????????????????????????????? ??? | | ????????????????????????????? ?? | | ????????????????????????????? ?? | | ????????????????????????????? ???? | | ?????????????????????????????? ??????? | | ???????????????????????????????????????########### | | ???????????????????????????????????????????????# | | ???????????????????????????????????????????????# | | ???????????????????????????????????????????????# | | ???????????????????????????????????????????????# | | ???????????????????????????????????????????????# | | ???????????????????????????????????????????????# | | ???????????????????????????????????????????????# | | ???????????????????????????????????????????????# | | ???????????????????????????????????????????????# | +----------------------------------------------------+ Best States ------------- Heat Dissipation 34 Energy Generation 16 Energy Capacity 290 Matter Stores 300 Matter Capacity 300 Sight Range 20 Terrain Scan Density 10 Armor Coverage 525 Melee Speed Boost 20 Evasion (%) 55 Melee Accuracy 5 Recoil Reduction 4 Offensive Hacking 20 Defensive Hacking 10 Item Schematics ----------------- Hacking Suite | -9/Materials | Scanalyzed Lgt. Treads | -9/Materials | Scanalyzed Lrg. Storage Unit | -9/Materials | Scanalyzed Imp. Signal Interpreter | -9/Materials | Scanalyzed Grenade Launcher | -9/Materials | Scanalyzed Lgt. EM Pulse Cannon | -9/Materials | Scanalyzed Datajack | -9/Materials | Scanalyzed Hvy. Ion Engine | -8/Materials | Scanalyzed Arm. Treads | -7/Factory | Scanalyzed Med. Treads | -7/Factory | Scanalyzed Arm. Huge Wheel | -7/Factory | Scanalyzed Robot Schematics ------------------ G-34 Mercenary | -10/Materials | Hacked Fabricated ------------ G-34 Mercenary | x3 | -7/Factory G-34 Mercenary | x3 | -7/Factory Alien Tech Used ----------------- None Achievements -------------- Dynamic Key My Command Is Your Wish Challenges ------------ None Game ------ Seed SuperdenseDisassembledUnit Manual? 0 Play Time 01:12:08 Cumulative 10.2 hours Start 2024.08.15 @ 08:32:07 End 2024.08.15 @ 09:44:38 Sessions 1 Manual Loads 0 Difficulty Rogue Special Mode None Game No. 7 Rogue 7 Adventurer 0 Explorer 0 Win Type - Total 0 Types 0/0/0/0/0/0/0/0/0 Lore% 9 Gallery% 14 Achievement% 23 Wizard Run 0 Options --------- Layout 1 ASCII 0 Keyboard 0 Movement Mouse Keybinds 0 Fullscreen 1 Font 24/Smallcaps Map View 50x35 Zoom Use 0% Tactical HUD 1 Map Filters NONE Filters NONE Steam 0 RUN: 442f3228-42db-49f6-8e0c-496ff5baa3b2